bitfinex/quotes_ETHUSD_20250804
["timestamp","ask_amount","ask_price","bid_price","bid_amount"]
[1754336501819,9.42149655,3673.3,3673.2,0.002]
[1754336503615,8.92189655,3673.3,3673.2,0.002]
[1754336504002,4.186,3673.3,3673.2,0.9059]
[1754336504976,6.90834775,3673.3,3673.2,0.002]
[1754336505125,10.95794775,3673.3,3673.2,0.002]
[1754336505327,11.71801573,3673.3,3673.2,0.002]
[1754336505532,41.71801573,3673.3,3673.2,0.002]
[1754336505732,44.44667759,3673.3,3673.2,0.002]
[1754336507014,44.03730961,3673.3,3673.2,0.002]
[1754336507405,39.50060961,3673.3,3673.2,0.002]
[1754336507610,5.72234775,3673.3,3673.2,0.002]
[1754336507821,9.90934775,3673.3,3673.2,0.9254]
[1754336509313,3.0,3673.3,3673.2,0.9254]
[1754336509532,9.90934775,3673.3,3673.2,0.9254]
[1754336510057,9.90934775,3673.3,3673.2,0.4396]
[1754336511756,3.0,3673.3,3673.2,0.4396]
[1754336511920,9.90734775,3673.3,3673.2,0.9254]
[1754336512551,0.20159158,3673.5,3673.2,0.9254]
[1754336512755,0.20159158,3673.5,3673.3,0.9234]
[1754336512756,9.90728931,3673.4,3673.3,0.9234]
[1754336513069,11.32712876,3673.4,3673.3,0.9234]
[1754336513643,7.14212876,3673.4,3673.3,0.9234]
[1754336513853,11.32712876,3673.4,3673.3,0.9234]
[1754336514030,11.32712876,3673.4,3673.3,0.4376]
[1754336514231,2.85834775,3673.3,3673.2,0.002]
[1754336514639,4.24740093,3673.3,3673.2,0.002]
[1754336515254,4.28143027,3673.3,3673.2,0.002]
[1754336515463,38.66627289,3673.3,3673.2,0.002]
[1754336515767,39.15797289,3673.3,3673.2,0.002]
[1754336515927,38.66627289,3673.3,3673.2,0.002]
[1754336516252,8.66627289,3673.3,3673.2,0.002]
[1754336516766,12.84927289,3673.3,3673.2,0.002]
[1754336516920,8.66627289,3673.3,3673.2,0.002]
[1754336517125,7.24740093,3673.3,3673.2,0.002]
[1754336517322,11.43040093,3673.3,3673.2,0.4396]
[1754336517551,11.43040093,3673.3,3673.2,0.9254]
[1754336518158,11.43040093,3673.3,3673.2,0.002]
[1754336518462,13.138638,3673.3,3673.2,0.002]
[1754336519450,13.39266417,3673.3,3673.2,0.002]
[1754336519829,13.39166417,3673.3,3673.2,0.002]
[1754336520626,13.39166417,3673.3,3673.2,0.4396]
[1754336521033,7.5014271,3673.3,3673.2,0.9254]
[1754336521270,11.6824271,3673.3,3673.2,0.9254]
[1754336522129,11.6824271,3673.3,3673.2,0.4396]
[1754336522326,12.1741271,3673.3,3673.2,0.002]
[1754336522836,12.1731271,3673.3,3673.2,0.002]
[1754336523191,9.01171124,3673.3,3673.2,0.002]
[1754336523470,13.19171124,3673.3,3673.2,0.002]
[1754336523869,17.41547724,3673.3,3673.2,0.002]
[1754336524773,9.00284535,3673.3,3673.2,0.9254]
[1754336524934,6.00284535,3673.3,3673.2,0.9254]
[1754336525776,6.00284535,3673.3,3673.2,3.64782186]
[1754336525977,5.74881918,3673.3,3673.2,3.64782186]
[1754336526435,5.61281918,3673.3,3673.2,3.64782186]
[1754336526637,5.61281918,3673.3,3673.2,4.42227241]
[1754336530639,5.61281918,3673.3,3673.2,7.42227241]
[1754336530838,5.61281918,3673.3,3673.2,7.97227241]
[1754336531188,5.61281918,3673.3,3673.2,7.42227241]
[1754336531472,5.61281918,3673.3,3673.2,11.60027241]
[1754336532165,5.61281918,3673.3,3673.2,7.42227241]
[1754336532351,5.61281918,3673.3,3673.2,11.60127241]
[1754336533676,5.61281918,3673.3,3673.2,11.60027241]
[1754336534058,5.61281918,3673.3,3673.2,4.42227241]
[1754336534241,5.61281918,3673.3,3673.2,7.96182186]
[1754336535476,5.61281918,3673.3,3673.2,0.138]
[1754336535651,5.61281918,3673.3,3673.2,6.90242186]
[1754336536145,5.61281918,3673.3,3673.2,7.34002186]
[1754336537156,5.61281918,3673.3,3673.2,7.83552186]
[1754336537475,5.61281918,3673.3,3673.2,9.40083072]
[1754336538679,5.61281918,3673.3,3673.2,13.13583072]
[1754336538885,5.61281918,3673.3,3673.2,7.97252186]
[1754336541656,5.61281918,3673.3,3673.2,7.47702186]
[1754336541979,5.61281918,3673.3,3673.2,7.47602186]
[1754336542596,5.61281918,3673.3,3673.2,7.97152186]
[1754336542972,5.61281918,3673.3,3673.2,7.47602186]
[1754336544115,5.61281918,3673.3,3673.2,8.91893072]
[1754336544276,5.61281918,3673.3,3673.2,9.41443072]
[1754336545805,5.61281918,3673.3,3673.2,13.14943072]
[1754336546005,5.61281918,3673.3,3673.2,8.03833072]
[1754336546190,6.10431918,3673.3,3673.2,7.912]
[1754336546905,6.10431918,3673.3,3673.2,3.737]
[1754336547108,6.45501918,3673.3,3673.2,3.737]
[1754336547312,10.63101918,3673.3,3673.2,3.737]
[1754336547806,13.35336693,3673.3,3673.2,3.737]
[1754336547991,12.25217588,3673.3,3673.2,3.737]
[1754336548797,11.90147588,3673.3,3673.2,3.737]
[1754336549203,12.25217588,3673.3,3673.2,3.737]
[1754336549588,10.63101918,3673.3,3673.2,3.737]
[1754336550143,6.40725318,3673.3,3673.2,3.737]
[1754336550439,9.12960093,3673.3,3673.2,0.002]
[1754336552001,6.40725318,3673.3,3673.2,0.002]
[1754336552239,6.05655318,3673.3,3673.2,0.002]
[1754336552424,6.05455318,3673.3,3673.2,0.002]
[1754336553615,6.05455318,3673.3,3673.2,3.737]
[1754336553799,1.88055318,3673.3,3673.2,3.737]
[1754336554004,5.84488571,3673.3,3673.2,3.737]
[1754336555335,3.20919541,3673.2,3672.8,0.002]
[1754336555519,2.72264061,3673.0,3672.8,0.002]
[1754336555720,4.174,3672.9,3672.8,0.002]
[1754336556019,4.6655,3672.9,3672.8,0.002]
[1754336558462,4.174,3672.9,3672.8,0.4625]
[1754336558755,4.174,3672.9,3672.8,0.002]
[1754336558957,4.6655,3672.9,3672.8,0.002]
[1754336560079,4.174,3672.9,3672.8,0.002]
[1754336560857,4.174,3672.9,3672.8,0.4625]
[1754336561258,4.174,3672.9,3672.8,0.002]
[1754336561560,0.4915,3672.9,3672.8,0.002]
[1754336565491,0.4915,3672.9,3672.8,4.212]
[1754336566453,4.174,3673.0,3672.8,4.212]
[1754336567070,4.6674,3673.0,3672.8,4.212]
[1754336568492,4.174,3673.0,3672.8,4.212]
[1754336568697,0.4934,3672.9,3672.8,4.212]
[1754336569107,4.1820457,3672.9,3672.8,0.002]
[1754336569401,8.0827457,3672.9,3672.8,0.002]
[1754336569700,8.04871265,3672.9,3672.8,0.002]
[1754336570672,21.52122867,3672.9,3672.8,0.002]
[1754336571199,21.63031367,3672.9,3672.8,0.002]
[1754336571398,51.63031367,3672.9,3672.8,0.002]
[1754336572382,51.27961367,3672.9,3672.8,0.002]
[1754336572576,25.45361367,3672.9,3672.8,0.002]
[1754336572773,11.98109765,3672.9,3672.8,0.002]
[1754336573192,11.43109765,3672.9,3672.8,0.002]
[1754336573386,41.43109765,3672.9,3672.8,0.002]
[1754336573702,41.78179765,3672.9,3672.8,0.002]
[1754336574621,36.76369765,3672.9,3672.8,0.002]
[1754336574765,7.174,3672.9,3672.8,0.4711]
[1754336575093,7.174,3672.9,3672.8,0.9465]
[1754336575294,7.174,3672.9,3672.8,0.4711]
[1754336575809,9.89664423,3672.9,3672.8,0.4711]
[1754336575999,7.174,3672.9,3672.8,0.4711]
[1754336576299,9.89664423,3672.9,3672.8,0.4711]
[1754336576665,9.88781141,3672.9,3672.8,0.4711]
[1754336577397,11.85594491,3672.9,3672.8,0.002]
[1754336577601,12.26531289,3672.9,3672.8,0.002]
[1754336577783,11.85594491,3672.9,3672.8,0.002]
[1754336578875,12.20664491,3672.9,3672.8,0.002]
[1754336579175,12.75664491,3672.9,3672.8,0.002]
[1754336579375,12.40594491,3672.9,3672.8,0.002]
[1754336579690,12.51502791,3672.9,3672.8,0.002]
[1754336580070,12.86572791,3672.9,3672.8,0.002]
[1754336580598,12.51502791,3672.9,3672.8,0.002]
[1754336580800,12.02162791,3672.9,3672.8,0.002]
[1754336581100,9.99689441,3672.9,3672.8,0.4711]
[1754336581399,9.99689441,3672.9,3672.8,0.002]
[1754336581568,1.44293714,3673.1,3672.8,0.9465]
[1754336581767,7.174,3673.0,3672.9,0.9445]
[1754336582004,7.174,3673.0,3672.9,0.4691]
[1754336582574,9.8965701,3673.0,3672.9,0.4691]
[1754336583503,7.174,3673.0,3672.9,0.9445]
[1754336583802,4.174,3673.0,3672.9,0.9445]
[1754336584866,1.44293714,3673.1,3672.9,0.9445]
[1754336585070,1.44293714,3673.1,3672.8,0.002]
[1754336585071,0.136,3672.9,3672.8,0.002]
[1754336585269,0.136,3672.9,3672.8,2.72471836]
[1754336585470,1.44293714,3673.1,3673.0,2.7225701]
[1754336585691,1.44293714,3673.1,3673.0,3.6670701]
[1754336588072,1.44293714,3673.1,3673.0,7.8400701]
[1754336588875,1.44293714,3673.1,3673.0,5.1175]
[1754336589101,1.44293714,3673.1,3673.0,7.8400701]
[1754336589277,1.44293714,3673.1,3673.0,8.96462416]
[1754336590236,1.44293714,3673.1,3673.0,2.06905406]
[1754336590512,1.44293714,3673.1,3673.0,4.79162416]
[1754336591804,1.44293714,3673.1,3673.0,9.13762416]
[1754336593921,1.44293714,3673.1,3673.0,8.65085816]
[1754336594128,1.44293714,3673.1,3673.0,12.82385816]
[1754336595313,0.137,3673.8,3673.5,2.72214863]
[1754336595516,0.137,3673.8,3673.6,4.173]
[1754336595918,0.4934,3673.7,3673.6,4.173]
[1754336596883,0.137,3673.8,3673.3,0.136]
[1754336597087,3.54659555,3673.7,3673.4,4.172]
[1754336597285,0.136,3673.3,3673.1,4.172]
[1754336597820,0.4624,3673.2,3673.1,4.172]
[1754336598526,0.4624,3673.2,3672.8,0.4498]
[1754336598686,0.4624,3673.2,3672.9,4.172]
[1754336598887,0.4624,3673.2,3672.9,4.6198]
[1754336599123,0.4624,3673.2,3672.9,7.34244255]
[1754336599690,0.4624,3673.2,3672.9,6.89464255]
[1754336600035,0.136,3673.3,3673.0,0.4478]
[1754336600214,0.136,3673.3,3673.1,0.4478]
[1754336600421,0.136,3673.3,3673.2,4.172]
[1754336600725,0.5984,3673.3,3673.2,4.172]
[1754336600926,0.136,3673.3,3673.2,4.172]
[1754336601126,0.5984,3673.3,3673.2,4.172]
[1754336602900,0.5984,3673.3,3672.8,3.17249534]
[1754336603100,0.4624,3673.2,3672.9,4.172]
[1754336603408,0.4624,3673.1,3672.9,4.172]
[1754336603832,0.4624,3673.1,3673.0,4.21]
[1754336604803,0.136,3673.3,3673.0,6.9325701]
[1754336605144,0.136,3673.3,3673.1,2.72249046]
[1754336605447,0.136,3673.3,3673.2,4.172]
[1754336606001,3.8245,3673.9,3673.3,2.72230626]
[1754336606208,0.136,3673.7,3673.5,2.72219953]
[1754336606406,0.136,3673.7,3673.6,4.172]
[1754336606619,0.136,3673.7,3673.6,6.89412543]
[1754336607230,0.136,3674.1,3673.7,2.72205133]
[1754336607555,0.136,3674.1,3673.7,7.38608034]
[1754336607722,0.001,3674.4,3673.7,9.08579278]
[1754336608037,0.137,3674.4,3673.7,9.66959278]
[1754336610376,0.4624,3674.3,3673.7,9.22969278]
[1754336611556,0.4624,3674.3,3673.7,13.40069278]
[1754336613068,0.137,3674.4,3673.7,13.84059278]
[1754336614649,0.137,3674.4,3673.7,9.63059278]
[1754336615227,0.001,3674.4,3673.7,9.63059278]
[1754336618337,1e-08,3673.8,3673.7,9.63059278]
[1754336618572,1e-08,3673.8,3673.7,16.84059278]
[1754336621344,1e-08,3673.8,3673.7,12.22969278]
[1754336621593,0.46240001,3673.8,3673.7,12.95189278]
[1754336624553,0.46240001,3673.8,3673.7,8.74189278]
[1754336625427,0.46240001,3673.8,3673.7,7.02805133]
[1754336626312,0.46240001,3673.8,3673.7,11.23805133]
[1754336626493,1e-08,3673.8,3673.7,11.23805133]
[1754336627524,0.45090001,3673.8,3673.7,11.23805133]
[1754336631646,1e-08,3673.8,3673.7,7.52875133]
[1754336631823,1e-08,3673.8,3673.7,13.16274466]
[1754336632148,1e-08,3673.8,3673.7,12.72284466]
[1754336632944,1e-08,3673.8,3673.7,26.17660505]
[1754336633152,1e-08,3673.8,3673.7,26.61650505]
[1754336633658,1e-08,3673.8,3673.7,30.16650505]
[1754336634315,1e-08,3673.8,3673.7,25.95650505]
[1754336636547,1e-08,3673.8,3673.7,25.51660505]
[1754336636733,1e-08,3673.8,3673.7,25.95650505]
[1754336639048,1e-08,3673.8,3673.7,25.95550505]
[1754336639416,1e-08,3673.8,3673.7,12.06184466]
[1754336640266,1e-08,3673.8,3673.7,12.50174466]
[1754336642049,1e-08,3673.8,3673.7,12.06184466]
[1754336645269,0.001,3674.4,3674.3,2.72160683]
[1754336645570,0.001,3674.4,3674.3,12.0790543]
[1754336645868,0.4519,3674.4,3674.3,12.2009364]
[1754336648951,0.4519,3674.4,3674.3,8.0329364]
[1754336649160,0.4519,3674.4,3674.3,12.1999364]
[1754336653635,0.4519,3674.4,3674.3,4.34599999]
[1754336653837,1.35938982,3674.4,3674.3,4.20999999]
[1754336654035,0.95,3674.4,3674.3,11.09860682]
[1754336654362,0.95,3674.4,3674.3,8.37699999]
[1754336654757,0.5879,3674.4,3674.3,11.09860682]
[1754336655422,0.95,3674.4,3674.3,8.37699999]
[1754336655940,0.95,3674.4,3674.3,11.09860682]
[1754336656250,0.5879,3674.4,3674.3,11.09860682]
[1754336657160,0.5879,3674.4,3674.3,6.88860683]
[1754336659280,1.71968878,3674.4,3674.3,4.20999999]
[1754336660540,2.72172917,3674.2,3674.0,4.20999999]
[1754336660771,2.72190753,3673.9,3673.1,7.06847935]
[1754336660977,0.8593,3673.8,3673.3,2.7223165]
[1754336661273,0.136,3673.6,3673.4,6.88826206]
[1754336661646,0.4972,3673.5,3673.4,6.88826206]
[1754336661973,0.4972,3673.5,3673.4,6.88827364]
[1754336662341,0.4972,3673.5,3673.4,4.166]
[1754336662648,0.8593,3673.5,3673.4,4.166]
[1754336663049,0.8593,3673.5,3673.4,4.167]
[1754336664234,0.8593,3673.5,3673.3,0.002]
[1754336664439,3.61560206,3673.4,3673.3,0.002]
[1754336664841,3.61560206,3673.4,3672.9,0.002]
[1754336664842,0.89332842,3673.4,3672.9,0.002]
[1754336665042,2.8585701,3673.0,3672.9,0.002]
[1754336665541,3.7178701,3673.0,3672.9,0.002]
[1754336665744,5.70727932,3673.0,3672.9,0.002]
[1754336665987,2.98470922,3673.0,3672.9,0.002]
[1754336666164,2.62260922,3673.0,3672.9,0.002]
[1754336666479,0.6332,3673.0,3672.9,0.002]
[1754336666844,3.7178701,3673.0,3672.9,0.002]
[1754336667779,0.9953,3673.0,3672.9,0.002]
[1754336668186,0.6332,3673.0,3672.9,0.002]
[1754336669059,0.136,3673.0,3672.9,2.72464423]
[1754336669273,0.136,3673.0,3672.9,3.19584423]
[1754336669459,0.136,3673.0,3672.9,7.36284423]
[1754336670283,0.136,3673.0,3672.9,4.6402]
[1754336670681,0.6332,3673.0,3672.9,4.6402]
[1754336670885,0.136,3673.0,3672.9,7.36284423]
[1754336671066,0.6332,3673.0,3672.9,4.169]
[1754336671678,0.6332,3673.0,3672.9,6.89164423]
[1754336671873,0.136,3673.0,3672.9,11.57284422]
[1754336672075,2.72198786,3673.8,3673.2,2.72238912]
[1754336672384,0.136,3673.2,3673.1,4.167]
[1754336672577,0.136,3673.2,3673.1,7.36069598]
[1754336673804,0.6332,3673.2,3673.1,6.88949598]
[1754336674283,0.6332,3673.2,3673.1,4.167]
[1754336674684,0.6332,3673.2,3672.9,6.934598]
[1754336674992,0.4972,3673.1,3673.0,4.166]
[1754336676076,0.4972,3673.1,3672.9,4.21199999]
[1754336676277,0.3621,3673.4,3673.0,4.167]
[1754336676589,0.136,3673.1,3673.0,4.167]
[1754336676890,2.7225701,3673.0,3672.9,4.21199999]
[1754336677050,3.5818701,3673.0,3672.9,4.21199999]
[1754336677709,0.8593,3673.0,3672.9,4.21199999]
[1754336677991,3.2197701,3673.0,3672.9,0.002]
[1754336678158,3.90384711,3673.0,3672.9,0.002]
[1754336678355,3.54174711,3673.0,3672.9,0.002]
[1754336678555,3.90384711,3673.0,3672.9,0.002]
[1754336679996,6.90384711,3673.0,3672.9,0.002]
[1754336682587,7.35974211,3673.0,3672.9,0.002]
[1754336683694,4.63717201,3673.0,3672.9,0.002]
[1754336684695,7.35974211,3673.0,3672.9,0.002]
[1754336685173,4.63717201,3673.0,3672.9,0.002]
[1754336685406,7.35974211,3673.0,3672.9,0.002]
[1754336685893,4.63717201,3673.0,3672.9,0.002]
[1754336686274,3.81917701,3673.0,3672.9,0.002]
[1754336687795,0.32197701,3673.0,3672.9,0.002]
[1754336688006,0.4712,3673.2,3672.9,0.4384]
[1754336688166,0.136,3673.1,3672.9,0.8803]
[1754336688502,0.136,3673.1,3673.0,0.4364]
[1754336689597,0.136,3673.1,3673.0,4.64639999]
[1754336690330,0.136,3673.1,3673.0,7.36897009]
[1754336690466,0.136,3673.1,3673.0,4.6293283]
[1754336690664,0.001,3673.3,3673.2,2.72242186]
[1754336691509,0.001,3673.3,3673.2,3.60072186]
[1754336692063,0.001,3673.3,3673.2,0.4364]
[1754336692577,0.001,3673.3,3673.2,3.60072186]
[1754336692989,0.001,3673.3,3673.2,0.4364]
[1754336693590,0.001,3673.3,3673.2,3.15882186]
[1754336697008,0.001,3673.3,3673.2,3.60072186]
[1754336697213,0.001,3673.3,3673.2,5.08445074]
[1754336697572,0.001,3673.7,3673.3,2.72229181]
[1754336697775,0.001,3673.7,3673.4,2.72227364]
[1754336697776,0.136,3673.5,3673.4,2.72227364]
[1754336698019,0.136,3673.5,3673.4,0.4364]
[1754336699178,0.136,3673.5,3673.3,4.165]
[1754336699807,0.136,3673.5,3673.2,2.72239972]
[1754336700013,0.136,3673.5,3673.3,4.165]
[1754336700223,0.136,3673.5,3673.0,4.20999999]
[1754336700380,2.72249598,3673.1,3672.9,0.002]
[1754336700580,14.26646039,3673.4,3672.9,0.002]
[1754336700774,3.1731701,3673.0,3672.9,0.002]
[1754336701290,3.5352701,3673.0,3672.9,0.002]
[1754336701487,0.8127,3673.0,3672.9,0.002]
[1754336701694,0.4506,3673.0,3672.9,0.002]
[1754336702931,0.4506,3673.3,3672.9,0.4384]
[1754336703077,2.72220569,3673.5,3672.9,0.4384]
[1754336703280,0.25404281,3673.4,3673.0,8.81039999]
[1754336703514,0.25404281,3673.6,3673.1,3.60073642]
[1754336703722,0.25404281,3673.5,3673.4,2.72222405]
[1754336704021,0.25404281,3673.6,3673.5,2.72219953]
[1754336704318,0.25404281,3673.6,3673.5,3.15859953]
[1754336704719,0.25404281,3673.6,3673.5,0.4364]
[1754336704916,0.25406084,3673.6,3673.5,3.15857965]
[1754336705223,0.25406084,3673.6,3673.5,4.16307165]
[1754336705714,0.001,3673.7,3673.6,2.72212543]
[1754336705937,0.001,3673.7,3673.6,3.15852543]
[1754336706300,0.001,3673.7,3673.6,7.7785563]
[1754336706500,0.001,3673.7,3673.6,7.76442543]
[1754336706697,0.001,3673.7,3673.6,8.91354425]
[1754336709818,0.001,3673.7,3673.6,11.91354425]
[1754336710325,0.001,3673.7,3673.6,12.04954425]
[1754336711825,0.001,3674.1,3674.0,2.72182906]
[1754336712027,1e-08,3674.1,3674.0,9.89895252]
[1754336712192,1e-08,3674.1,3674.0,12.67004579]
[1754336712502,1e-08,3674.1,3674.0,16.88004578]
[1754336713013,1e-08,3674.1,3674.0,12.67004579]
[1754336716331,1e-08,3674.1,3674.0,13.22004579]
[1754336717133,1e-08,3674.5,3674.4,5.72153276]
[1754336717340,1e-08,3674.5,3674.4,11.00001689]
[1754336717507,1e-08,3674.5,3674.4,12.01421689]
[1754336717842,0.001,3674.6,3674.5,6.2714587]
[1754336717843,1e-08,3674.6,3674.5,6.2714587]
[1754336718229,1e-08,3674.6,3674.5,7.1496587]
[1754336718747,1.38746188,3675.5,3674.9,2.72116248]
[1754336718917,0.001,3675.6,3675.5,2.72071826]
[1754336719122,0.001,3675.6,3675.5,7.33211395]
[1754336719319,0.001,3675.6,3675.5,7.45401826]
[1754336719849,0.001,3675.6,3675.5,3.29301826]
[1754336720060,0.4938,3675.6,3675.5,6.88171826]
[1754336724018,0.4938,3675.6,3675.3,0.136]
[1754336724224,0.4938,3675.6,3675.3,2.72084058]
[1754336724425,0.6298,3675.6,3675.0,0.136]
[1754336724659,0.136,3675.4,3675.3,2.72086632]
[1754336724835,0.6288,3675.4,3675.3,6.88086632]
[1754336725420,0.4928,3675.4,3675.3,6.88086632]
[1754336725856,0.001,3675.6,3675.5,2.72071826]
[1754336726162,0.001,3675.6,3675.5,6.89481395]
[1754336726358,0.001,3675.6,3675.5,6.88071826]
[1754336726550,0.001,3675.6,3675.5,7.45301826]
[1754336729655,0.3631,3676.5,3675.5,7.45301826]
[1754336729656,0.001,3676.8,3676.6,2.71990425]
[1754336729855,0.001,3676.8,3676.6,6.87890425]
[1754336730159,0.4938,3676.7,3676.6,7.01610425]
[1754336730326,0.4938,3676.7,3676.6,4.161]
[1754336730543,0.8559,3676.7,3676.6,6.88090425]
[1754336730746,0.4938,3676.7,3676.6,6.88090425]
[1754336731480,0.8559,3676.7,3676.2,2.85614358]
[1754336731683,0.8888988,3676.6,3675.8,0.136]
[1754336731883,0.8888988,3676.6,3674.4,7.7501343]
[1754336731884,3.0,3676.2,3675.6,4.164]
[1754336732048,0.136,3675.6,3675.0,0.136]
[1754336732244,0.136,3675.4,3675.1,6.88496427]
[1754336732479,0.8549,3675.3,3675.2,2.72092165]
[1754336732666,0.8549,3675.3,3675.2,4.164]
[1754336732667,0.4928,3675.3,3675.2,4.164]
[1754336733048,0.8549,3675.3,3675.2,4.164]
[1754336733881,0.4928,3675.3,3675.2,4.164]
[1754336735278,0.4928,3675.3,3675.2,4.163]
[1754336735471,0.4928,3675.3,3675.2,6.88394035]
[1754336735673,0.4928,3675.3,3675.2,4.163]
[1754336735879,0.8549,3675.3,3675.2,4.162]
[1754336736560,0.4928,3675.3,3675.2,4.162]
[1754336736947,0.8549,3675.3,3675.2,4.162]
[1754336737587,0.4928,3675.3,3675.2,4.162]
[1754336738286,0.4928,3675.3,3675.2,4.161]
[1754336738444,0.4928,3675.3,3674.5,0.136]
[1754336738445,0.8549,3675.3,3674.5,0.136]
[1754336738646,0.136,3674.8,3674.4,5.02861923]
[1754336738850,0.136,3674.5,3674.4,5.02861923]
[1754336739107,0.6288,3674.5,3674.4,9.19061923]
[1754336739948,0.6288,3674.5,3674.4,11.91215199]
[1754336739949,0.136,3674.5,3674.4,11.91215199]
[1754336740157,0.6288,3674.5,3674.4,9.19061923]
[1754336740381,0.6288,3674.5,3674.4,11.91215199]
[1754336740571,0.6288,3674.5,3674.4,13.3755319]
[1754336740953,0.136,3674.5,3674.4,13.3755319]
[1754336741986,0.6288,3674.5,3674.4,10.65399914]
[1754336742190,0.6288,3674.5,3674.4,9.19061923]
[1754336742563,0.6288,3674.5,3674.4,11.91215199]
[1754336743058,0.6288,3674.5,3674.4,9.19061923]
[1754336744104,0.6288,3674.5,3674.4,5.02861923]
[1754336744105,0.9909,3674.5,3674.4,5.02861923]
[1754336744390,0.9909,3674.5,3674.0,0.002]
[1754336744391,1.36211372,3674.5,3674.0,0.002]
[1754336744555,2.72165738,3674.3,3674.0,0.002]
[1754336744959,3.57660094,3674.2,3674.0,0.002]
[1754336745392,0.4928,3674.1,3674.0,0.002]
[1754336747698,3.57665498,3674.1,3674.0,0.002]
[1754336748204,0.8549,3674.1,3674.0,0.002]
[1754336748916,0.4928,3674.1,3674.0,0.002]
[1754336749286,0.4796,3674.4,3674.0,0.002]
[1754336749486,0.4796,3674.4,3674.1,4.16]
[1754336749705,0.4796,3674.3,3674.1,4.16]
[1754336749886,0.4796,3674.2,3674.1,4.16]
[1754336750706,0.136,3674.3,3674.1,4.6268]
[1754336750906,0.6156,3674.3,3674.1,5.13387]
[1754336751106,0.6156,3674.3,3674.1,4.66707]
[1754336751341,0.6156,3674.3,3674.1,7.38882025]
[1754336751630,0.6156,3674.3,3674.1,4.66707]
[1754336751833,0.136,3674.3,3674.1,4.66707]
[1754336752139,0.4796,3674.2,3674.1,4.16]
[1754336752443,0.4796,3674.2,3674.0,2.72382089]
[1754336752736,0.4796,3674.2,3674.1,4.161]
[1754336753355,0.136,3674.3,3674.1,4.161]
[1754336753562,2.72175498,3674.1,3674.0,4.163]
[1754336753861,2.72175498,3674.1,3674.0,0.002]
[1754336753862,3.69945498,3674.1,3674.0,0.002]
[1754336754360,3.33735498,3674.1,3674.0,0.002]
[1754336754534,3.69945498,3674.1,3674.0,0.002]
[1754336754736,4.34496972,3674.1,3674.0,0.002]
[1754336756147,4.89496972,3674.1,3674.0,0.002]
[1754336756349,6.98286972,3674.1,3674.0,0.002]
[1754336758930,7.34496972,3674.1,3674.0,0.002]
[1754336759964,6.98286972,3674.1,3674.0,0.002]
[1754336760183,3.136,3674.1,3674.0,0.002]
[1754336760335,5.72167609,3674.3,3674.0,0.4688]
[1754336760533,3.20096099,3674.7,3674.1,0.4668]
[1754336760765,4.6406,3674.7,3674.1,3.1885342]
[1754336760995,0.136,3674.1,3674.0,0.002]
[1754336761187,0.136,3674.1,3674.0,3.45650383]
[1754336761574,0.136,3674.1,3674.0,1.64338613]
[1754336761986,0.136,3674.1,3674.0,4.36521519]
[1754336762201,0.136,3674.1,3674.0,1.20148613]
[1754336763503,0.6156,3674.1,3674.0,0.002]
[1754336763707,0.136,3674.1,3674.0,0.002]
[1754336763890,3.33735498,3674.1,3674.0,0.002]
[1754336765876,3.0,3674.3,3674.0,0.002]
[1754336766089,3.20135498,3674.1,3674.0,0.002]
[1754336766411,6.82767412,3674.1,3674.0,0.002]
[1754336766611,7.54065219,3674.1,3674.0,0.002]
[1754336766974,7.79407565,3674.1,3674.0,0.002]
[1754336771505,7.59707565,3674.1,3674.0,0.002]
[1754336771709,5.97517844,3674.1,3674.0,0.002]
[1754336771962,10.13717844,3674.1,3674.0,0.4688]
[1754336772122,5.97517844,3674.1,3674.0,0.4688]
[1754336772516,3.25342346,3674.1,3674.0,0.4688]
[1754336772718,0.25342346,3674.1,3674.0,0.4688]
[1754336773310,3.48880037,3674.1,3674.0,0.002]
[1754336773502,3.45477844,3674.1,3674.0,0.002]
[1754336775333,0.25342346,3674.1,3674.0,0.002]
[1754336775606,0.25342346,3674.1,3674.0,0.4688]
[1754336775848,2.97517844,3674.1,3674.0,0.4688]
[1754336776457,3.45477844,3674.1,3674.0,0.002]
[1754336776859,7.61677844,3674.1,3674.0,0.002]
[1754336777595,8.95061719,3674.1,3674.0,0.002]
[1754336779079,7.13717844,3674.1,3674.0,0.4599]
[1754336780064,0.25342346,3674.1,3674.0,0.4599]
[1754336780260,4.162,3674.2,3674.0,0.4599]
[1754336780466,0.25342346,3674.1,3674.0,0.002]
[1754336780762,0.38942346,3674.1,3674.0,0.27439166]
[1754336780967,0.136,3674.1,3674.0,0.73229166]
[1754336781165,0.136,3674.1,3674.0,3.45412072]
[1754336781364,0.136,3674.1,3674.0,3.89602072]
[1754336781588,0.136,3674.1,3674.0,1.17419166]
[1754336781906,0.136,3674.1,3674.0,0.4599]
[1754336782113,0.6194,3674.1,3674.0,0.002]
[1754336782296,0.38942346,3674.1,3674.0,0.002]
[1754336782476,0.136,3674.1,3674.0,0.4599]
[1754336783374,0.25342346,3674.3,3674.0,3.62362906]
[1754336783705,0.136,3674.1,3674.0,3.35838933]
[1754336783891,0.136,3674.3,3674.1,2.72171358]
[1754336784496,0.136,3674.3,3674.2,3.62148091]
[1754336784686,0.136,3674.3,3674.2,0.8998]
[1754336785005,0.136,3674.3,3674.2,0.4579]
[1754336785373,0.136,3674.3,3674.0,0.63656027]
[1754336785701,0.136,3674.3,3674.1,0.4579]
[1754336786215,0.136,3674.3,3674.2,0.4579]
[1754336788625,0.136,3674.3,3674.2,0.8998]
[1754336789420,0.136,3674.3,3674.2,3.62148091]